fUSD/lending_fUSD_20260228
["ID","MTS","AMOUNT","RATE_DAILY","PERIOD"]
[406936847,1772301041406,-150.0,0.00017886,2]
[406936848,1772301041416,-150.0,0.00017889,2]
[406936849,1772301041425,-1075.2658489,0.0001789,2]
[406936850,1772301041434,-150.0,0.0001789,2]
[406936851,1772301041444,-151.0,0.00017891,2]
[406936852,1772301041454,-2001.01419523,0.000179,3]
[406936853,1772301041463,-9102.71678634,0.000179,3]
[406936854,1772301041472,-166.63606415,0.000179,2]
[406936855,1772301041481,-151.0,0.000179,2]
[406936856,1772301041489,-151.0,0.000179,2]
[406936857,1772301041498,-252.729421,0.000179,2]
[406936858,1772301041507,-151.0,0.000179,2]
[406936859,1772301041516,-151.0,0.000179,2]
[406936860,1772301041525,-300.0,0.000179,3]
[406936861,1772301041533,-300.0,0.000179,3]
[406936862,1772301041542,-300.0,0.000179,3]
[406936863,1772301041551,-300.0,0.000179,3]
[406936864,1772301041560,-300.0,0.000179,3]
[406936865,1772301041569,-151.0,0.000179,2]
[406936866,1772301041578,-5658.06868789,0.000179,2]
[406936867,1772301041587,-1545.66280724,0.000179,2]
[406936868,1772301041597,-25000.0,0.000179,3]
[406936869,1772301041606,-3541.87397846,0.000179,2]
[406936870,1772301041615,-1001.79836722,0.000179,2]
[406936871,1772301041625,-41122.12703,0.000179,2]
[406936872,1772301041633,-205.30707816,0.000179,2]
[406936873,1772301041642,-1033.13865863,0.00017901,2]
[406936874,1772301041651,-150.0,0.00017926,2]
[406936875,1772301041660,-150.0,0.00017934,2]
[406936876,1772301041669,-50000.0,0.0001794,2]
[406936877,1772301041678,-301.077664,0.0001794,2]
[406936878,1772301041687,-301.077664,0.0001794,2]
[406936879,1772301041696,-301.077664,0.0001794,2]
[406936880,1772301041706,-301.077664,0.0001794,2]
[406936881,1772301041715,-150.0,0.00017941,2]
[406936882,1772301041725,-150.0,0.00017943,2]
[406936883,1772301041733,-150.0,0.00017949,2]
[406936884,1772301041742,-158.49,0.00017954,2]
[406936885,1772301041751,-150.0,0.0001796,2]
[406936886,1772301041760,-150.0,0.00017964,2]
[406936887,1772301041769,-400.64253974,0.0001797,2]
[406936888,1772301041778,-1000.0,0.0001797,2]
[406936889,1772301041787,-1000.0,0.0001797,2]
[406936890,1772301041796,-1000.0,0.0001797,2]
[406936891,1772301041805,-1000.0,0.0001797,2]
[406936892,1772301041814,-1000.0,0.0001797,2]
[406936893,1772301041824,-1000.0,0.0001797,2]
[406936894,1772301041833,-1121.80732336,0.0001797,2]
[406936895,1772301041842,-1000.0,0.0001797,2]
[406936896,1772301041852,-400.0,0.0001797,2]
[406936897,1772301041861,-868.63087736,0.00017977,2]
[406936898,1772301041871,-150.0,0.00017979,2]
[406936899,1772301041880,-150.0,0.00017982,2]
[406936900,1772301041889,-217.02842139,0.00017982,2]
[406936901,1772301041899,-150.0,0.00017985,2]
[406936902,1772301041907,-150.0,0.00017997,2]
[406936903,1772301041917,-25159.55207367,0.00017999,3]
[406936904,1772301041928,-258.029058,0.00017999,2]
[406936905,1772301041938,-258.029058,0.00017999,2]
[406936906,1772301041947,-258.029058,0.00017999,2]
[406936907,1772301041955,-258.029058,0.00017999,2]
[406936908,1772301041966,-264.244898,0.00017999,2]
[406936909,1772301041975,-264.244898,0.00017999,2]
[406936910,1772301041983,-264.244898,0.00017999,2]
[406936911,1772301041993,-264.244898,0.00017999,2]
[406936912,1772301042005,-151.0,0.00017999,2]
[406936913,1772301042014,-239139.67937443,0.00018,2]
[406936914,1772301042028,-593.16202,0.00018,2]
[406936925,1772301043389,-30.71609481,0.00016212,2]
[406936930,1772301046312,-1096.9977653,0.00016212,2]
[406936931,1772301046323,-345493.9558294,0.00018,2]
[406936932,1772301046332,-81604.52165761,0.00018,2]
[406936933,1772301046364,-52023.93557015,0.00018,2]
[406936934,1772301046419,-259.68000002,0.00018,2]
[406936948,1772301890363,215.73966861,9.95e-05,14]
[406936951,1772302132072,211.11667572,8.059e-05,14]
[406936952,1772302147109,-156.59,8.1e-05,2]
[406936953,1772302147132,-300.0,8.91e-05,2]
[406936954,1772302147153,-300.0,9.05e-05,2]
[406936955,1772302147172,-46.8987663,0.0001,2]
[406936965,1772302231222,-103.1012337,0.0001,2]
[406936967,1772302231231,-300.0,0.00010109,2]
[406936969,1772302231241,-250.0,0.00010218,2]
[406936971,1772302231251,-300.0,0.0001025,2]
[406936973,1772302231263,-156.59,0.00010309,2]
[406936974,1772302231273,-91.2710138,0.00010931,2]
[406936975,1772302231288,-208.7289862,0.00010931,2]
[406936976,1772302231299,-300.0,0.00011,2]
[406936977,1772302231308,-300.0,0.00011,2]
[406936978,1772302231318,-156.59,0.00012517,2]
[406936979,1772302231328,-165.04,0.0001274,2]
[406936980,1772302231338,-1154.34,0.00012826,2]
[406936981,1772302231348,-506.0,0.0001411,2]
[406936982,1772302231357,-177.293163,0.00014218,7]
[406936983,1772302231367,-166.66,0.00014218,2]
[406936984,1772302231375,-166.66,0.00014518,2]
[406936985,1772302231387,-1200.0,0.00014637,2]
[406936986,1772302231403,-1600.0,0.00014638,2]
[406936988,1772302231413,-156.59,0.00014726,2]
[406936990,1772302231423,-166.66,0.00014817,2]
[406936992,1772302231432,-150.0,0.00014967,2]
[406936994,1772302231441,-166.66,0.00015116,2]
[406936996,1772302231451,-1000.0,0.00015279,2]
[406936998,1772302231459,-150.99,0.00015343,2]
[406937000,1772302231469,-158.45,0.00015349,2]
[406937002,1772302231478,-166.66,0.00015416,2]
[406937004,1772302231487,-166.66,0.00015715,2]
[406937007,1772302231496,-300.0,0.00016008,2]
[406937010,1772302231505,-4828.6571,0.00016009,2]
[406937013,1772302231513,-284.40788705,0.00016039,2]
[406937015,1772302231522,-176.88326453,0.000161,3]
[406937017,1772302231533,-1856.61214001,0.000161,3]
[406937019,1772302231543,-1282.921,0.000161,2]
[406937021,1772302231552,-2500.0,0.00016109,2]
[406937023,1772302231561,-5000.0,0.00016109,2]
[406937025,1772302231571,-9999.99,0.00016116,2]
[406937027,1772302231580,-1238.81,0.00016131,2]
[406937029,1772302231590,-3396.11,0.00016192,2]
[406937031,1772302231599,-10829.97801964,0.00016198,2]
[406937033,1772302231608,-200.0,0.00016199,2]
[406937035,1772302231618,-151.0,0.00016199,2]
[406937037,1772302231628,-151.0,0.00016199,2]
[406937039,1772302231637,-151.0,0.00016199,2]
[406937041,1772302231646,-151.0,0.00016199,2]
[406937043,1772302231656,-151.0,0.00016199,2]
[406937045,1772302231666,-151.0,0.00016199,2]
[406937047,1772302231674,-151.0,0.00016199,2]
[406937049,1772302231683,-151.0,0.00016199,2]
[406937051,1772302231693,-151.0,0.00016199,2]
[406937053,1772302231702,-151.0,0.00016199,2]
[406937055,1772302231712,-151.0,0.00016199,2]
[406937056,1772302231721,-151.0,0.00016199,2]
[406937058,1772302231731,-5000.00094056,0.000162,5]
[406937060,1772302231741,-151.0,0.00016206,2]
[406937061,1772302231750,-259.17530453,0.00016208,2]
[406937062,1772302231760,-169.33768648,0.00016208,2]
[406937063,1772302231770,-5066.6509523,0.00016208,2]
[406937064,1772302231779,-500.0,0.00016208,2]
[406937065,1772302231788,-177.0064701,0.00016208,2]
[406937066,1772302231797,-500.0,0.00016208,2]
[406937067,1772302231806,-500.0,0.00016208,2]
[406937068,1772302231815,-500.0,0.00016208,2]
[406937069,1772302231824,-500.0,0.00016208,2]
[406937070,1772302231833,-500.0,0.00016208,2]
[406937071,1772302231842,-300.0,0.00016208,2]
[406937072,1772302231851,-569.01340771,0.00016208,2]
[406937073,1772302231860,-500.0,0.00016208,2]
[406937074,1772302231870,-500.0,0.00016208,2]
[406937075,1772302231879,-189.02021491,0.00016208,2]
[406937076,1772302231888,-154.02121994,0.00016208,2]
[406937077,1772302231897,-500.0,0.00016208,2]
[406937078,1772302231907,-500.0,0.00016208,2]
[406937079,1772302231916,-500.0,0.00016208,2]
[406937080,1772302231926,-500.0,0.00016208,2]
[406937081,1772302231935,-500.0,0.00016208,2]
[406937082,1772302231944,-500.0,0.00016208,2]
[406937083,1772302231953,-500.0,0.00016208,2]
[406937084,1772302231962,-500.0,0.00016208,2]
[406937085,1772302231971,-500.0,0.00016208,2]
[406937086,1772302231981,-500.0,0.00016208,2]
[406937087,1772302231990,-500.0,0.00016208,2]
[406937088,1772302231999,-500.0,0.00016208,2]
[406937089,1772302232008,-391.63027114,0.00016208,2]
[406937090,1772302232017,-500.0,0.00016208,2]
[406937091,1772302232027,-500.0,0.00016208,2]
[406937092,1772302232036,-500.0,0.00016208,2]
[406937093,1772302232045,-500.0,0.00016208,2]
[406937094,1772302232054,-500.0,0.00016208,2]
[406937095,1772302232063,-500.0,0.00016208,2]
[406937096,1772302232072,-500.0,0.00016208,2]
[406937097,1772302232082,-500.0,0.00016208,2]
[406937098,1772302232091,-500.0,0.00016208,2]
[406937099,1772302232100,-500.0,0.00016208,2]
[406937100,1772302232109,-500.0,0.00016208,2]
[406937101,1772302232118,-500.0,0.00016208,2]
[406937102,1772302232127,-500.0,0.00016208,2]
[406937103,1772302232136,-500.0,0.00016208,2]
[406937104,1772302232146,-500.0,0.00016208,2]
[406937105,1772302232155,-500.0,0.00016208,2]
[406937106,1772302232165,-500.0,0.00016208,2]
[406937107,1772302232175,-500.0,0.00016208,2]
[406937108,1772302232184,-500.0,0.00016208,2]
[406937109,1772302232193,-8254.0,0.00016209,2]
[406937110,1772302232203,-1423.53445244,0.00016209,2]
[406937111,1772302232213,-333.93278908,0.00016209,2]
[406937112,1772302232222,-256.19898688,0.00016209,2]
[406937113,1772302232231,-205.30707816,0.00016209,2]
[406937114,1772302232240,-3049.82277582,0.00016209,2]
[406937115,1772302232249,-1763.32005595,0.00016209,2]
[406937116,1772302232263,-966.03925456,0.00016209,2]
[406937117,1772302232273,-19138.59955215,0.00016209,2]
[406937118,1772302232285,-1254.41808677,0.00016209,2]
[406937119,1772302232296,-17173.63899614,0.00016209,2]
[406937120,1772302232309,-459.33646048,0.00016209,2]
[406937121,1772302232320,-2004.84629441,0.00016209,2]
[406937122,1772302232336,-601.15370559,0.00016209,2]
[406937123,1772302232355,-1205.79627524,0.00016209,2]
[406937124,1772302232366,-1337.70986208,0.00016209,2]
[406937125,1772302232376,-1257.02204758,0.00016209,2]
[406937132,1772302237339,-3521.18509526,0.00016209,2]
[406937133,1772302237350,-4169.84262738,0.00016209,2]
[406937134,1772302237393,-479.436717,0.00016209,2]
[406937135,1772302237404,-3180.33727583,0.00016209,2]
[406937136,1772302237415,-1741.48362425,0.00016209,2]
[406937137,1772302237502,-1165.45033526,0.00016209,2]
[406937149,1772302239454,-12233.17179339,0.00016209,2]
[406937150,1772302239510,-998.0741625,0.00016209,2]
[406937151,1772302239522,-716313.87048499,0.00016209,2]
[406937152,1772302239533,-1737.3,0.00016209,2]
[406937153,1772302239544,-2500.0,0.00016209,2]
[406937154,1772302239773,-4796.89891196,0.00016209,2]
[406937155,1772302239986,-713.67957342,0.00016209,2]
[406937173,1772302242420,-8175.94541609,0.00016209,2]
[406937175,1772302242429,-4002.17298784,0.00016209,2]
[406937179,1772302242580,-1500.0,0.00016209,2]
[406937264,1772302245450,-152102.77018863,0.00016209,2]
[406937265,1772302245489,-1073.15,0.00016209,2]
[406937266,1772302245500,-910.13157169,0.00016209,2]
[406937267,1772302245511,-12626.40644906,0.00016209,2]
[406937268,1772302245597,-209013.70958545,0.00016209,2]
[406937293,1772303353136,-469.55522987,0.0001,2]
[406937300,1772303431434,-360.80856145,0.0001,2]
[406937301,1772303431447,-283.06382833,0.0001,2]
[406937302,1772303431456,-300.0,0.00010124,2]
[406937303,1772303431465,-433.02977772,0.00011,2]
[406937304,1772303431475,-300.0,0.00011,2]
[406937305,1772303431484,-296.70163332,0.00011132,2]
[406937306,1772303431494,-259.40897146,0.00013213,2]
[406937307,1772303431503,-1200.0,0.00013518,2]
[406937308,1772303431513,-173.8,0.00013684,2]
[406937309,1772303431522,-506.0,0.0001411,2]
[406937310,1772303431531,-300.0,0.00014435,2]
[406937311,1772303431540,-3240.0,0.00014436,2]
[406937312,1772303431550,-166.68,0.00014827,2]
[406937313,1772303431559,-1497.0,0.0001487,2]
[406937314,1772303431569,-300.0,0.00014966,2]
[406937315,1772303431578,-1192.11578917,0.00014967,2]
[406937316,1772303431594,-2149.90421083,0.00014967,2]
[406937317,1772303431603,-417.2546032,0.00015045,2]
[406937318,1772303431612,-200.0,0.0001517,2]
[406937319,1772303431632,-1500.0,0.00015208,2]
[406937320,1772303431644,-1033.79,0.00015209,2]
[406937321,1772303431653,-3545.24,0.00015209,2]
[406937322,1772303431663,-420.0,0.00015807,2]
[406937323,1772303431674,-2500.0,0.00015909,2]
[406937324,1772303431683,-5000.0,0.00015909,2]
[406937325,1772303431692,-6813.28784675,0.0001595,2]
[406937326,1772303431703,-1033.79,0.00015969,2]
[406937327,1772303431713,-160.0,0.00015971,2]
[406937328,1772303431722,-174.04581251,0.00015971,2]
[406937329,1772303431732,-502.41,0.00015999,2]
[406937330,1772303431742,-178.43717872,0.00015999,2]
[406937331,1772303431751,-200.0,0.00015999,2]
[406937332,1772303431761,-500.0,0.00015999,2]
[406937333,1772303431769,-500.0,0.00015999,2]
[406937334,1772303431777,-500.0,0.00015999,2]
[406937335,1772303431786,-500.0,0.00015999,2]
[406937336,1772303431795,-500.0,0.00015999,2]
[406937337,1772303431805,-500.0,0.00015999,2]
[406937338,1772303431813,-500.0,0.00015999,2]
[406937339,1772303431822,-500.0,0.00015999,2]
[406937340,1772303431832,-500.0,0.00015999,2]
[406937341,1772303431840,-500.0,0.00015999,2]
[406937342,1772303431850,-500.0,0.00015999,2]
[406937343,1772303431859,-500.0,0.00015999,2]
[406937344,1772303431867,-500.0,0.00015999,2]
[406937345,1772303431876,-500.0,0.00015999,2]
[406937346,1772303431884,-500.0,0.00015999,2]
[406937347,1772303431893,-151.0,0.00015999,2]
[406937348,1772303431902,-151.0,0.00015999,2]
[406937349,1772303431912,-151.0,0.00015999,2]
[406937350,1772303431922,-151.0,0.00015999,2]
[406937351,1772303431931,-151.0,0.00015999,2]
[406937352,1772303431940,-151.0,0.00015999,2]
[406937353,1772303431950,-151.0,0.00015999,2]
[406937354,1772303431959,-151.0,0.00015999,2]
[406937355,1772303431969,-151.0,0.00015999,2]
[406937356,1772303431978,-151.0,0.00015999,2]
[406937357,1772303431987,-151.0,0.00015999,2]
[406937358,1772303431996,-151.0,0.00015999,2]
[406937359,1772303432006,-171.13876802,0.00016,2]
[406937360,1772303432015,-1070.641,0.00016006,2]
[406937361,1772303432024,-500.0,0.00016006,2]
[406937362,1772303432033,-151.0,0.00016006,2]
[406937363,1772303432043,-500.0,0.00016008,2]
[406937364,1772303432052,-500.0,0.00016008,2]
[406937365,1772303432061,-500.0,0.00016008,2]
[406937366,1772303432071,-500.0,0.00016008,2]
[406937367,1772303432080,-500.0,0.00016008,2]
[406937368,1772303432090,-500.0,0.00016008,2]
[406937369,1772303432099,-500.0,0.00016008,2]
[406937370,1772303432108,-500.0,0.00016008,2]
[406937371,1772303432118,-500.0,0.00016008,2]
[406937372,1772303432127,-500.0,0.00016008,2]
[406937373,1772303432137,-500.0,0.00016008,2]
[406937374,1772303432147,-500.0,0.00016008,2]
[406937375,1772303432156,-500.0,0.00016008,2]
[406937376,1772303432166,-500.0,0.00016008,2]
[406937377,1772303432176,-500.0,0.00016008,2]
[406937378,1772303432185,-500.0,0.00016008,2]
[406937379,1772303432195,-500.0,0.00016008,2]
[406937380,1772303432205,-500.0,0.00016008,2]
[406937381,1772303432215,-500.0,0.00016008,2]
[406937382,1772303432224,-500.0,0.00016008,2]
[406937383,1772303432234,-500.0,0.00016008,2]
[406937384,1772303432244,-500.0,0.00016008,2]
[406937385,1772303432253,-487.12864758,0.00016008,2]
[406937386,1772303432263,-500.0,0.00016008,2]
[406937387,1772303432278,-200.0,0.00016008,2]
[406937388,1772303432287,-485.32413267,0.00016008,2]
[406937389,1772303432297,-1281.18100716,0.00016009,2]
[406937390,1772303432307,-222.12621972,0.00016009,2]
[406937391,1772303432316,-845.28434774,0.00016009,2]
[406937392,1772303432325,-2744.84049822,0.00016009,2]
[406937393,1772303432335,-377.703,0.00016009,2]
[406937394,1772303432344,-110294.25787671,0.00016009,2]
[406937395,1772303432357,-10150.46308425,0.00016009,2]
[406937396,1772303432369,-6643.79393172,0.00016009,2]
[406937397,1772303432381,-18748.93472359,0.00016009,2]
[406937398,1772303432490,-1959.44116084,0.00016009,2]
[406937399,1772303432657,-49298.97781918,0.00016009,2]
[406937400,1772303437657,-2589.49791791,0.00016009,2]
[406937401,1772303437775,-423.09623628,0.00016009,2]
[406937402,1772303437787,-137822.00774578,0.00016009,2]
[406937403,1772303437799,-770.35682408,0.00016009,2]
[406937404,1772303437824,-49049.55316241,0.00016009,2]
[406937405,1772303437836,-736.12857669,0.00016009,2]
[406937436,1772303439828,-563.60796658,0.00016009,2]
[406937437,1772303440215,-796764.53248302,0.00016009,2]
[406937438,1772303440228,-3116.37174188,0.00016009,2]
[406937439,1772303440240,-1054119.09577481,0.00016009,2]
[406937452,1772303445204,-213868.22285107,0.00016009,2]
[406937453,1772303445216,-626.88,0.00016009,2]
[406937454,1772303445263,-27880.86761354,0.00016009,2]
[406937457,1772303445436,-305.27750964,0.00016009,2]
[406937458,1772303445493,-14268.63500002,0.00016009,2]
[406937459,1772303445502,-4495.7121631,0.0001605,2]
[406937460,1772303445511,-27.65283688,0.00016109,2]
[406937461,1772303445522,-8226.84707794,0.00016109,2]
[406937470,1772303738994,-500.0,9.003e-05,2]
[406937471,1772303739021,-136.03784258,9.003e-05,2]
[406937472,1772303739081,-224.9999,9.003e-05,2]
[406937473,1772303739176,-138.96225742,9.003e-05,2]
[406937474,1772303739202,-149.77720385,9.003e-05,2]
[406937475,1772303739259,-350.22279615,9.003e-05,2]
[406937476,1772303835913,149.77720385,9.003e-05,2]
[406937477,1772303835938,350.22279615,9.003e-05,2]
[406937478,1772303853238,149.77720385,9.003e-05,2]
[406937479,1772303853265,350.22279615,9.003e-05,2]
[406937480,1772303860364,290.16074674,9.003e-05,2]
[406937481,1772303860389,235.03057136,9.003e-05,2]
[406937482,1772303860416,178.84057926,9.003e-05,2]
[406937483,1772303860442,284.38794264,9.003e-05,2]
[406937492,1772303947619,209.85106025,7.945e-05,2]
[406937497,1772304549123,-1352.03764723,7.942e-05,2]
[406937498,1772304549147,-1200.0,7.944e-05,2]
[406937499,1772304549169,-300.0,7.944e-05,2]
[406937500,1772304549191,-300.0,7.944e-05,2]
[406937501,1772304549214,-1692.92222077,7.945e-05,2]
[406937508,1772304631549,-547.77308168,7.944e-05,2]
[406937511,1772304631561,-652.22691832,7.944e-05,2]
[406937513,1772304631570,-300.0,7.944e-05,2]
[406937515,1772304631579,-169.90010612,7.945e-05,2]
[406937516,1772304631603,-11937.89060386,7.945e-05,2]
[406937517,1772304631613,-300.0,8.261e-05,2]
[406937518,1772304631622,-300.0,8.736e-05,2]
[406937519,1772304631631,-300.0,8.736e-05,2]
[406937520,1772304631640,-195.0,8.736e-05,2]
[406937521,1772304631650,-195.0,8.736e-05,2]
[406937522,1772304631659,-300.0,8.736e-05,2]
[406937523,1772304631668,-195.0,8.736e-05,2]
[406937524,1772304631678,-195.0,8.736e-05,2]
[406937525,1772304631687,-195.0,8.738e-05,2]
[406937526,1772304631696,-300.0,8.738e-05,2]
[406937527,1772304631706,-167.0,8.739e-05,2]
[406937528,1772304631715,-420.0,8.739e-05,2]
[406937529,1772304631723,-297.0,8.739e-05,2]
[406937530,1772304631733,-587.0,9.612e-05,2]
[406937531,1772304631743,-200.0,0.0001,2]
[406937532,1772304631752,-500.0,0.0001,2]
[406937533,1772304631762,-500.0,0.0001,2]
[406937535,1772304631771,-500.0,0.0001,2]
[406937537,1772304631780,-500.0,0.0001,2]
[406937539,1772304631789,-500.0,0.0001,2]
[406937541,1772304631798,-500.0,0.0001,2]
[406937543,1772304631807,-500.0,0.0001,2]
[406937545,1772304631816,-613.02109217,0.0001,2]
[406937547,1772304631825,-151.0,0.0001,2]
[406937549,1772304631834,-151.0,0.0001,2]
[406937551,1772304631843,-151.0,0.0001,2]
[406937553,1772304631855,-151.0,0.0001,2]
[406937555,1772304631864,-151.0,0.0001,2]
[406937557,1772304631873,-151.0,0.0001,2]
[406937559,1772304631882,-365.35288005,0.0001,2]
[406937561,1772304631892,-151.0,0.0001,2]
[406937563,1772304631901,-151.0,0.0001,2]
[406937565,1772304631910,-151.0,0.0001,2]
[406937567,1772304631919,-151.0,0.0001,2]
[406937569,1772304631928,-151.0,0.0001,2]
[406937571,1772304631937,-151.0,0.0001,2]
[406937573,1772304631953,-473.0,0.00010574,2]
[406937575,1772304631960,-250.0,0.00010616,2]
[406937577,1772304631968,-224.988383,0.00011467,2]
[406937579,1772304631976,-961.95,0.00011507,2]
[406937581,1772304631986,-500.0,0.0001207,2]
[406937583,1772304631993,-500.0,0.0001207,2]
[406937585,1772304632001,-500.0,0.0001207,2]
[406937587,1772304632009,-500.0,0.0001207,2]
[406937589,1772304632017,-500.0,0.0001207,2]
[406937591,1772304632026,-500.0,0.0001207,2]
[406937593,1772304632035,-500.0,0.0001207,2]
[406937595,1772304632044,-500.97875071,0.0001207,2]
[406937597,1772304632054,-500.0,0.0001207,2]
[406937599,1772304632064,-500.0,0.0001207,2]
[406937601,1772304632074,-500.0,0.0001207,2]
[406937603,1772304632084,-500.0,0.0001207,2]
[406937605,1772304632093,-500.0,0.0001207,2]
[406937608,1772304632108,-500.0,0.0001207,2]
[406937610,1772304632122,-500.0,0.0001207,2]
[406937612,1772304632131,-500.0,0.0001207,2]
[406937614,1772304632140,-500.0,0.0001207,2]
[406937616,1772304632150,-500.0,0.0001207,2]
[406937618,1772304632160,-500.0,0.0001207,2]
[406937619,1772304632170,-173.8,0.00012473,2]
[406937620,1772304632180,-1000.0,0.0001321,2]
[406937621,1772304632189,-1600.0,0.00013611,2]
[406937622,1772304632201,-4753.14,0.00013699,2]
[406937623,1772304632211,-299.99,0.00013699,2]
[406937624,1772304632221,-150.99,0.00013699,2]
[406937625,1772304632231,-999.99,0.00013699,2]
[406937626,1772304632241,-281.235479,0.0001376,7]
[406937627,1772304632251,-1000.0,0.00014079,2]
[406937628,1772304632262,-782.43,0.0001408,2]
[406937629,1772304632271,-506.0,0.0001411,2]
[406937630,1772304632281,-200.0,0.00014163,2]
[406937631,1772304632291,-782.43,0.00014432,2]
[406937632,1772304632300,-500.0,0.00014627,2]
[406937633,1772304632309,-782.43,0.00014784,2]
[406937634,1772304632319,-1000.0,0.00014862,2]
[406937635,1772304632329,-150.0,0.00015037,2]
[406937636,1772304632338,-782.43,0.00015136,2]
[406937637,1772304632348,-29999.99,0.0001531,2]
[406937638,1772304632358,-9999.99,0.0001531,2]
[406937639,1772304632367,-915.2,0.0001531,2]
[406937640,1772304632376,-1600.0,0.00015313,2]
[406937641,1772304632386,-782.43,0.00015488,2]
[406937643,1772304632395,-31034.88639825,0.00015709,2]
[406937646,1772304632409,-1853.70690175,0.00015709,2]
[406937648,1772304632418,-1000.0,0.00015709,2]
[406937650,1772304632427,-4133.7097,0.00015709,2]
[406937652,1772304632437,-31949.38534354,0.00015709,2]
[406937654,1772304632451,-731.38855193,0.00015709,2]
[406937657,1772304632469,-583.896,0.00015709,2]
[406937659,1772304632480,-986.49092467,0.00015709,2]
[406937673,1772304637735,-200.0,0.0001,2]
[406937674,1772304637746,-1482.66097847,0.00015609,2]
[406937675,1772304637755,-33872.70947986,0.00015709,2]
[406937676,1772304637765,-2502.81127745,0.00015709,2]
[406937677,1772304637898,-2497.18872255,0.00015709,2]
[406937678,1772304637907,-2500.0,0.00015709,2]
[406937679,1772304637916,-739.62380429,0.00015795,2]
[406937680,1772304637926,-2498.89179262,0.00015795,2]
[406937681,1772304637935,-3415.86,0.00015798,2]
[406937682,1772304637944,-171.138768,0.00015799,2]
[406937683,1772304637957,-180.13617366,0.00015799,2]
[406937684,1772304637966,-3415.86,0.00015799,2]
[406937686,1772304637975,-592.57,0.00015808,2]
[406937687,1772304637987,-500.0,0.00015808,2]
[406937689,1772304637997,-500.0,0.00015808,2]
[406937690,1772304638006,-292.6907697,0.00015808,2]
[406937691,1772304638015,-500.0,0.00015808,2]
[406937692,1772304638027,-500.0,0.00015808,2]
[406937693,1772304638036,-500.0,0.00015808,2]
[406937694,1772304638045,-500.0,0.00015808,2]
[406937695,1772304638054,-500.0,0.00015808,2]
[406937702,1772304638209,-500.0,0.00015808,2]
[406937703,1772304638233,-500.0,0.00015808,2]
[406937704,1772304638243,-500.0,0.00015808,2]
[406937705,1772304638253,-500.0,0.00015808,2]
[406937707,1772304638263,-500.0,0.00015808,2]
[406937708,1772304638273,-500.0,0.00015808,2]
[406937709,1772304638282,-500.0,0.00015808,2]
[406937710,1772304638291,-500.0,0.00015808,2]
[406937711,1772304638301,-500.0,0.00015808,2]
[406937712,1772304638311,-500.0,0.00015808,2]
[406937713,1772304638321,-500.0,0.00015808,2]
[406937714,1772304638330,-500.0,0.00015808,2]
[406937715,1772304638340,-500.0,0.00015808,2]
[406937716,1772304638349,-500.0,0.00015808,2]
[406937717,1772304638359,-500.0,0.00015808,2]
[406937718,1772304638368,-500.0,0.00015808,2]
[406937720,1772304638378,-500.0,0.00015808,2]
[406937721,1772304638387,-440.68272138,0.00015808,2]
[406937722,1772304638396,-500.0,0.00015808,2]
[406937723,1772304638406,-500.0,0.00015808,2]
[406937724,1772304638415,-500.0,0.00015808,2]
[406937725,1772304638425,-500.0,0.00015808,2]
[406937726,1772304638435,-500.0,0.00015808,2]
[406937727,1772304638445,-500.0,0.00015808,2]
[406937728,1772304638456,-500.0,0.00015808,2]